Workbook

Sheet Read Me
A1: History: The previous freshwater un-ionized ammonia criteria of 0.02 mg/L was recently replaced by a Total Ammonia Nitrogen (TAN) criteria for freshwaters. The new TAN criteria has been adopted by the Environmental Regulation Commission and became effective for state purposes on 2/17/2016. Approval by the USEPA is pending and is expected by the end of 2016. The new TAN criteria were developed by the USEPA and finalized in 2013 with more details provided at their website https://www.epa.gov/wqc/aquatic-life-criteria-ammonia (use button below to go to USEPA website). Similar to the un-ionized ammonia calculation, the TAN criteria are expressed as an equation dependent on the water pH and temperature. The TAN criteria include both a 30-day criterion and a single sample criterion. As stated in Chapter 62-302, F.A.C., "The 30-day average TAN value shall not exceed the average of the values calculated from the following equation, with no single value exceeding 2.5 times the value from the equation:
A3: where T and pH are defined as the paired temperature (°C) and pH associated with the TAN sample. For purposes of total ammonia nitrogen criterion calculations, pH is subject to the range of 6.5 to 9.0. If the measured pH entered is < 6.5 a value of 6.5 will be used in the calculation of the criteria and if the measured pH entered is > 9.0 a value of 9.0 will be used. Additionally, if the temperature entered is less than 7°C a value of 7°C will be used in the calculation of the criteria.
A4: Assessment of the 30-day criteria in ambient waters for Chapter 62-303, F.A.C. (IWR) purposes requires a minimum of four (4) independent samples collected at a station within a 30-day period. To apply the 30-day average criterion, the applicable 30-day criterion will be calculated for each individual sample using the equation provided above. The average of the TAN concentrations (mg/L) measured during the 30-day period will be compared to the average of the 30-day criteria calculated for each of the individual samples. If the average of the measured TAN concentrations is less than or equal to the average of the criteria calculated for the individual samples, the 30-day TAN criterion is achieved.
A5: In addition to the generally applicable TAN criteria described above, the USEPA also provided for the calculation of site specific alternative criteria (SSAC) values for waters in which the unionid musels are shown to be absent, but early life stage (ELS) protection is required. The modified SSAC equation is provided below. The SSAC is applied in the same manner as described for the generally applicable criteria described above. Note: The SSAC equation should only be used for waterbodies where unionid mussels have been shown to be absent, ELS Protection is Required, and a TAN SSAC has been adopted by FDEP and approved by the USEPA! For all other waterbodies the generally applicable TAN criteria equation should be used.
A7: To aid in the application of the new TAN criteria, a series of calculators have been developed to perform the necessary calculations. Specifically, this spreadsheet contains calculators for: 1) the single sample TAN criteria, 2) the 30-day average TAN criteria, and 3) un-ionized ammonia. The calculators can be accessed by either clicking on the appropriate button below or the appropriate tab at the bottom of the screen.
A8: 1) Calculation of single sample TAN Criteria
A9: 2) Calculation of 30-day average TAN Criteria
A10: 3) Calculation of 30-day TAN SSAC
A11: 4) Calculation of 30-day average TAN SSAC
A12: 5) Calculation of un-ionized ammonia

Sheet TAN Criteria Calculator
A1: Total Ammonia Nitrogen (TAN) Criteria Calculator | F1: Developed by Garry Payne, DEP, Sept. 2016
A2: To use: 1) Press "Clear Entries" button on right to remove all old data entries. 2) Enter measured TAN concentration in mg/L (optional), Water Temperature in °C, and pH in standard units. 3. Once all required data is entered, the applicable TAN criteria are calculated automatically.
A3: Columns A - D (Unshaded) are for data entry. Additional notes are embedded as comments in the heading for each column, please review!
A4: Columns E (shaded Green) and Column F (shaded Blue) are results fields and are protected from change. Do Not Attempt to Change These Fields!
A5: Site ID | B5: Measured Total Ammonia Nitrogen (TAN), mg/L | C5: Measured Water Temperature, °C | D5: Measured pH, Standard pH units | E5: 30-Day Average TAN Criteria Applicable to Individual Sample, mg/L | F5: Applicable Single Sample TAN Criteria, mg/L | H5: Final pH | I5: Final Temp
A6: 1 | B6: 0.5 | C6: 33 | D6: 7 | E6: =IF(AND(ISBLANK(C6),ISBLANK(D6)),"",IF(OR(ISBLANK(C6),ISBLANK(D6)),"Enter both Temp and pH",(0.8876*((0.0278/(1+10^(7.688-H6)))+(1.1994/(1+10^(H6-7.688))))*2.126*10^(0.028*(20-(I6)))))) -> 0.8161603889 | F6: =IF(AND(ISBLANK(C6),ISBLANK(D6)),"",IF(OR(ISBLANK(C6),ISBLANK(D6)),"Enter both Temp and pH",(2.5*(0.8876*((0.0278/(1+10^(7.688-H6)))+(1.1994/(1+10^(H6-7.688))))*2.126*10^(0.028*(20-MAX(C6,7))))))) -> 2.040400972 | H6: =IF(ISBLANK(D6),"",IF(D6<6.5,6.5,IF(D6>9,9,D6))) -> 7 | I6: =IF(ISBLANK(C6),"",IF(C6<7,7,C6)) -> 33
A7: 2 | B7: 1.1 | C7: 22 | D7: 7.5 | E7: =IF(AND(ISBLANK(C7),ISBLANK(D7)),"",IF(OR(ISBLANK(C7),ISBLANK(D7)),"Enter both Temp and pH",(0.8876*((0.0278/(1+10^(7.688-H7)))+(1.1994/(1+10^(H7-7.688))))*2.126*10^(0.028*(20-MAX(C7,7)))))) -> 1.224900787 | F7: =IF(AND(ISBLANK(C7),ISBLANK(D7)),"",IF(OR(ISBLANK(C7),ISBLANK(D7)),"Enter both Temp and pH",(2.5*(0.8876*((0.0278/(1+10^(7.688-H7)))+(1.1994/(1+10^(H7-7.688))))*2.126*10^(0.028*(20-MAX(C7,7))))))) -> 3.062251967 | H7: =IF(ISBLANK(D7),"",IF(D7<6.5,6.5,IF(D7>9,9,D7))) -> 7.5 | I7: =IF(ISBLANK(C7),"",IF(C7<7,7,C7)) -> 22
A8: 3 | B8: 2.22 | C8: 25 | D8: 8.2 | E8: =IF(AND(ISBLANK(C8),ISBLANK(D8)),"",IF(OR(ISBLANK(C8),ISBLANK(D8)),"Enter both Temp and pH",(0.8876*((0.0278/(1+10^(7.688-H8)))+(1.1994/(1+10^(H8-7.688))))*2.126*10^(0.028*(20-MAX(C8,7)))))) -> 0.4147784026 | F8: =IF(AND(ISBLANK(C8),ISBLANK(D8)),"",IF(OR(ISBLANK(C8),ISBLANK(D8)),"Enter both Temp and pH",(2.5*(0.8876*((0.0278/(1+10^(7.688-H8)))+(1.1994/(1+10^(H8-7.688))))*2.126*10^(0.028*(20-MAX(C8,7))))))) -> 1.036946007 | H8: 8.2 | I8: 25
A9: 4 | B9: 0.8 | C9: 35 | D9: 8.5 | E9: =IF(AND(ISBLANK(C9),ISBLANK(D9)),"",IF(OR(ISBLANK(C9),ISBLANK(D9)),"Enter both Temp and pH",(0.8876*((0.0278/(1+10^(7.688-H9)))+(1.1994/(1+10^(H9-7.688))))*2.126*10^(0.028*(20-MAX(C9,7)))))) -> 0.1322214246 | F9: =IF(AND(ISBLANK(C9),ISBLANK(D9)),"",IF(OR(ISBLANK(C9),ISBLANK(D9)),"Enter both Temp and pH",(2.5*(0.8876*((0.0278/(1+10^(7.688-H9)))+(1.1994/(1+10^(H9-7.688))))*2.126*10^(0.028*(20-MAX(C9,7))))))) -> 0.3305535615 | H9: 8.5 | I9: 35
A10: 5 | B10: 1.65 | C10: 20 | D10: 7.25 | E10: =IF(AND(ISBLANK(C10),ISBLANK(D10)),"",IF(OR(ISBLANK(C10),ISBLANK(D10)),"Enter both Temp and pH",(0.8876*((0.0278/(1+10^(7.688-H10)))+(1.1994/(1+10^(H10-7.688))))*2.126*10^(0.028*(20-MAX(C10,7)))))) -> 1.67242437 | F10: =IF(AND(ISBLANK(C10),ISBLANK(D10)),"",IF(OR(ISBLANK(C10),ISBLANK(D10)),"Enter both Temp and pH",(2.5*(0.8876*((0.0278/(1+10^(7.688-H10)))+(1.1994/(1+10^(H10-7.688))))*2.126*10^(0.028*(20-MAX(C10,7))))))) -> 4.181060925 | H10: 7.25 | I10: 20
A11: 6 | B11: 0.78 | C11: 28 | D11: 8.5 | E11: 0.2076356071 | F11: 0.5190890178 | H11: 8.5 | I11: 28
A12: 7
A13: 8
A14: 9
A15: 10
A16: 11
A17: 12
A18: 13
A19: 14
A20: 15
A21: 16
A22: 17
A23: 18
A24: 19
A25: 20
A26: 21
A27: 22
A28: 23
A29: 24
A30: 25
A31: 26
A32: 27
A33: 28
A34: 29
A35: 30
A36: 31
A37: 32
A38: 33
A39: 34
A40: 35
A41: 36
A42: 37
A43: 38
A44: 39
A45: 40
A46: 41
A47: 42
A48: 43
A49: 44
A50: 45
A51: 46
A52: 47
A53: 48
A54: 49
A55: 50
A56: 51
A57: 52
A58: 53
A59: 54
A60: 55
A61: 56
A62: 57
A63: 58
A64: 59
A65: 60
A66: 61
A67: 62
A68: 63
A69: 64
A70: 65
A71: 66 | E71: =IF(AND(ISBLANK(C71),ISBLANK(D71)),"",IF(OR(ISBLANK(C71),ISBLANK(D71)),"Enter both Temp and pH",(0.8876*((0.0278/(1+10^(7.688-H71)))+(1.1994/(1+10^(H71-7.688))))*2.126*10^(0.028*(20-MAX(C71,7)))))) ->  | H71: =IF(ISBLANK(D71),"",IF(D71<6.5,6.5,IF(D71>9,9,D71))) ->  | I71: =IF(ISBLANK(C71),"",IF(C71<7,7,C71)) -> 
A72: 67
A73: 68 | F73: =IF(AND(ISBLANK(C73),ISBLANK(D73)),"",IF(OR(ISBLANK(C73),ISBLANK(D73)),"Enter both Temp and pH",(2.5*(0.8876*((0.0278/(1+10^(7.688-H73)))+(1.1994/(1+10^(H73-7.688))))*2.126*10^(0.028*(20-MAX(C73,7))))))) -> 
A74: 69
A75: 70
A76: 71
A77: 72
A78: 73
A79: 74
A80: 75
A81: 76
A82: 77
A83: 78
A84: 79
A85: 80
A86: 81
A87: 82
A88: 83
A89: 84
A90: 85
A91: 86
A92: 87
A93: 88
A94: 89
A95: 90
A96: 91
A97: 92
A98: 93
A99: 94
A100: 95
A101: 96
A102: 97
A103: 98
A104: 99
A105: 100

Sheet 30-Day Avg TAN Calculator
A1: 30-Day Average Total Ammonia Nitrogen (TAN) Criteria Calculator | K1: Developed by Garry Payne, DEP, Sept. 2016
A2: To use: 1) Press "Clear Entries" button on right to remove all old data entries. 2) Enter Station ID in first cell (i.e., cell A6) (all data entered should be for the same station collected within the same 30-day period). 3) Enter measured TAN concentrations in mg/L collected at specified station during the same 30-day period. Enter water temperature (in °C) and pH (in standard units) measured at time of TAN sample collection. A minimum of 4 samples are required to calculate 30-day average TAN criteria for IWR purposes (Chapter 62-303, F.A.C.) 4) Once all required data are entered, the applicable TAN criteria (green and blue columns) and the averages of the measured TAN and the 30-day TAN criteria (red columns) are calculated automatically and achievement of the 30-day TAN criteria is assessed.
A3: Columns C - E (Unshaded) are for data entry. Additional notes are embedded as comments in the heading for each column, please review!
A4: Columns A and B (except Cell A6) (shaded Gray) are filled in automatically. Columns F - I (shaded Green, Blue, and Red) are results fields and are protected from change. Do Not Attempt to Change These Fields!
A5: Station ID | B5: Monthly Observation Number | C5: Measured Total Ammonia Nitrogen (TAN), mg/L | D5: Measured Water Temperature, °C | E5: Measured pH, Standard pH units | F5: 30-Day Average TAN Criteria Applicable to Individual Sample, mg/L | G5: Single Sample Maximum TAN Criteria, mg/L | H5: Single Sample Maximum TAN Criteria Achieved | I5: Average of Measured TAN Concentrations, mg/L | J5: Average of Individual 30-Day TAN Criteria, mg/L | K5: 30-Day TAN Criteria Achieved | N5: Final Temp | O5: Final pH | P5: Max Value Exceed
B6: 1 | C6: 0.5 | D6: 33 | E6: 7 | F6: =IF(AND(ISBLANK(D6),ISBLANK(E6)),"",IF(OR(ISBLANK(D6),ISBLANK(E6)),"Enter both Temp and pH",(0.8876*((0.0278/(1+10^(7.688-O6)))+(1.1994/(1+10^(O6-7.688))))*2.126*10^(0.028*(20-N6))))) -> 0.8161603889 | G6: =IF(AND(ISBLANK(D6),ISBLANK(E6)),"",IF(OR(ISBLANK(D6),ISBLANK(E6)),"Enter both Temp and pH",2.5*((0.8876*((0.0278/(1+10^(7.688-O6)))+(1.1994/(1+10^(O6-7.688))))*2.126*10^(0.028*(20-N6)))))) -> 2.040400972 | H6: =IF(OR(ISBLANK(C6),ISBLANK(G6)),"",IF(C6>G6,"NO","Yes")) -> Yes | I6: =AVERAGE($C$6:$C$65) -> 1.175 | J6: =AVERAGE($F$6:$F$65) -> 0.7446868301 | K6: =IF(OR(I6>J6,MAX(P6:P500)>0),"No","Yes") -> No | N6: =IF(ISBLANK(D6),"",IF(D6<7,7,D6)) -> 33 | O6: =IF(ISBLANK(E6),"",IF(E6<6.5,6.5,IF(E6>9,9,E6))) -> 7 | P6: =IF(H6="","",IF(H6="NO",1,0)) -> 0
A7: =IF(ISBLANK($A$6),"",$A$6) ->  | B7: 2 | C7: 1.1 | D7: 22 | E7: 7.5 | F7: =IF(AND(ISBLANK(D7),ISBLANK(E7)),"",IF(OR(ISBLANK(D7),ISBLANK(E7)),"Enter both Temp and pH",(0.8876*((0.0278/(1+10^(7.688-O7)))+(1.1994/(1+10^(O7-7.688))))*2.126*10^(0.028*(20-MAX(N7,7)))))) -> 1.224900787 | G7: =IF(AND(ISBLANK(D7),ISBLANK(E7)),"",IF(OR(ISBLANK(D7),ISBLANK(E7)),"Enter both Temp and pH",2.5*((0.8876*((0.0278/(1+10^(7.688-O7)))+(1.1994/(1+10^(O7-7.688))))*2.126*10^(0.028*(20-MAX(D7,7))))))) -> 3.062251967 | H7: =IF(OR(ISBLANK(C7),ISBLANK(G7)),"",IF(C7>G7,"NO","Yes")) -> Yes | I7: =IF(COUNT(F6:F65)<4,"Minimum data requirements not met for IWR purposes!","") ->  | N7: =IF(ISBLANK(D7),"",IF(D7<7,7,D7)) -> 22 | O7: 7.5 | P7: =IF(H7="","",IF(H7="NO",1,0)) -> 0
A8: =IF(ISBLANK($A$6),"",$A$6) ->  | B8: 3 | C8: 2.22 | D8: 25 | E8: 8.2 | F8: 0.4147784026 | G8: =IF(AND(ISBLANK(D8),ISBLANK(E8)),"",IF(OR(ISBLANK(D8),ISBLANK(E8)),"Enter both Temp and pH",2.5*((0.8876*((0.0278/(1+10^(7.688-O8)))+(1.1994/(1+10^(O8-7.688))))*2.126*10^(0.028*(20-MAX(D8,7))))))) -> 1.036946007 | H8: =IF(OR(ISBLANK(C8),ISBLANK(G8)),"",IF(C8>G8,"NO","Yes")) -> NO | N8: 25 | O8: 8.2 | P8: 1
A9: =IF(ISBLANK($A$6),"",$A$6) ->  | B9: 4 | C9: 0.8 | D9: 35 | E9: 8.5 | F9: 0.1322214246 | G9: 0.3305535615 | H9: NO | N9: 35 | O9: 8.5 | P9: 1
A10: =IF(ISNUMBER(F10),A9,"") ->  | B10: =IF(ISNUMBER(C10),B9+1,"") -> 5 | C10: 1.65 | D10: 20 | E10: 7.25 | F10: 1.67242437 | G10: 4.181060925 | H10: Yes | N10: 20 | O10: 7.25 | P10: 0
A11: =IF(ISNUMBER(F11),A10,"") ->  | B11: =IF(ISNUMBER(C11),B10+1,"") -> 6 | C11: 0.78 | D11: 28 | E11: 8.5 | F11: 0.2076356071 | G11: 0.5190890178 | H11: NO | N11: 28 | O11: 8.5 | P11: 1
O38: =IF(ISBLANK(E38),"",IF(E38<6.5,6.5,IF(E38>9,9,E38))) -> 

Sheet TAN SSAC Calculator
A1: Total Ammonia Nitrogen (TAN) SSAC Calculator | F1: Developed by Garry Payne, DEP, Jan. 2019
A2: Note: Use this tab only when unionid mussels have been shown to be absent, early life stage protection is required, and a TAN SSAC for the waterbody has been adopted by FDEP and approved by the USEPA.
A3: To use: 1) Press "Clear Entries" button on right to remove all old data entries. 2) Enter measured TAN concentration in mg/L (optional), Water Temperature in °C, and pH in standard units. 3. Once all required data is entered, the applicable TAN criteria are calculated automatically.
A4: Columns A - D (Unshaded) are for data entry. Additional notes are embedded as comments in the heading for each column, please review!
A5: Columns E (shaded Green) and Column F (shaded Blue) are results fields and are protected from change. Do Not Attempt to Change These Fields!
A6: Site ID | B6: Measured Total Ammonia Nitrogen (TAN), mg/L | C6: Measured Water Temperature, °C | D6: Measured pH, Standard pH units | E6: 30-Day Average TAN SSAC Value Applicable to Individual Sample, mg/L | F6: Applicable Single Sample TAN SSAC Value, mg/L | H6: Final pH
A7: 1 | B7: 0.5 | C7: 33 | D7: 7 | E7: =IF(AND(ISBLANK(C7),ISBLANK(D7)),"",IF(OR(ISBLANK(C7),ISBLANK(D7)),"Enter both Temp and pH",(0.9405*((0.0278/(1+10^(7.688-H7)))+(1.1994/(1+10^(H7-7.688))))*MIN(6.92,(7.547*10^(0.028*(20-C7))))))) -> 3.06992743 | F7: =IF(AND(ISBLANK(C7),ISBLANK(D7)),"",IF(OR(ISBLANK(C7),ISBLANK(D7)),"Enter both Temp and pH",(2.5*(0.9405*((0.0278/(1+10^(7.688-H7)))+(1.1994/(1+10^(H7-7.688))))*MIN(6.92,(7.547*10^(0.028*(20-C7)))))))) -> 7.674818574 | H7: =IF(ISBLANK(D7),"",IF(D7<6.5,6.5,IF(D7>9,9,D7))) -> 7
A8: 2 | B8: 1.1 | C8: 22 | D8: 7.5 | E8: =IF(AND(ISBLANK(C8),ISBLANK(D8)),"",IF(OR(ISBLANK(C8),ISBLANK(D8)),"Enter both Temp and pH",(0.9405*((0.0278/(1+10^(7.688-H8)))+(1.1994/(1+10^(H8-7.688))))*MIN(6.92,(7.547*10^(0.028*(20-C8))))))) -> 4.607374452 | F8: =IF(AND(ISBLANK(C8),ISBLANK(D8)),"",IF(OR(ISBLANK(C8),ISBLANK(D8)),"Enter both Temp and pH",(2.5*(0.9405*((0.0278/(1+10^(7.688-H8)))+(1.1994/(1+10^(H8-7.688))))*MIN(6.92,(7.547*10^(0.028*(20-C8)))))))) -> 11.51843613 | H8: =IF(ISBLANK(D8),"",IF(D8<6.5,6.5,IF(D8>9,9,D8))) -> 7.5
A9: 3 | B9: 2.22 | C9: 25 | D9: 8.2 | E9: 1.560158533 | F9: 3.900396334 | H9: 8.2
A10: 4 | B10: 0.8 | C10: 35 | D10: 8.5 | E10: 0.4973411889 | F10: 1.243352972 | H10: 8.5
A11: 5 | B11: 1.65 | C11: 20 | D11: 7.25 | E11: 5.76807406 | F11: 14.42018515 | H11: 7.25
A12: 6 | B12: 0.78 | C12: 28 | D12: 8.5 | E12: 0.7810061041 | F12: 1.95251526 | H12: 8.5
A13: 7
A14: 8
A15: 9
A16: 10
A17: 11
A18: 12
A19: 13
A20: 14
A21: 15
A22: 16
A23: 17
A24: 18
A25: 19
A26: 20
A27: 21
A28: 22
A29: 23
A30: 24
A31: 25
A32: 26
A33: 27
A34: 28
A35: 29
A36: 30
A37: 31
A38: 32
A39: 33
A40: 34
A41: 35
A42: 36
A43: 37
A44: 38
A45: 39
A46: 40
A47: 41
A48: 42
A49: 43
A50: 44
A51: 45
A52: 46
A53: 47
A54: 48
A55: 49
A56: 50
A57: 51
A58: 52
A59: 53
A60: 54
A61: 55
A62: 56
A63: 57
A64: 58
A65: 59
A66: 60
A67: 61
A68: 62
A69: 63
A70: 64
A71: 65
A72: 66 | E72: =IF(AND(ISBLANK(C72),ISBLANK(D72)),"",IF(OR(ISBLANK(C72),ISBLANK(D72)),"Enter both Temp and pH",(0.9405*((0.0278/(1+10^(7.688-H72)))+(1.1994/(1+10^(H72-7.688))))*MIN(6.92,(7.547*10^(0.028*(20-C72))))))) ->  | F72: =IF(AND(ISBLANK(C72),ISBLANK(D72)),"",IF(OR(ISBLANK(C72),ISBLANK(D72)),"Enter both Temp and pH",(2.5*(0.9405*((0.0278/(1+10^(7.688-H72)))+(1.1994/(1+10^(H72-7.688))))*MIN(6.92,(7.547*10^(0.028*(20-C72)))))))) ->  | H72: =IF(ISBLANK(D72),"",IF(D72<6.5,6.5,IF(D72>9,9,D72))) -> 
A73: 67
A74: 68
A75: 69
A76: 70
A77: 71
A78: 72
A79: 73
A80: 74
A81: 75
A82: 76
A83: 77
A84: 78
A85: 79
A86: 80
A87: 81
A88: 82
A89: 83
A90: 84
A91: 85
A92: 86
A93: 87
A94: 88
A95: 89
A96: 90
A97: 91
A98: 92
A99: 93
A100: 94
A101: 95
A102: 96
A103: 97
A104: 98
A105: 99
A106: 100

Sheet 30-Day Avg TAN SSAC Calculator
A1: 30-Day Average Total Ammonia Nitrogen (TAN) SSAC Calculator | K1: Developed by Garry Payne, DEP, Jan. 2019
A2: Note: Use this tab only when unionid mussels have been shown to be absent, early life stage protection is required, and a TAN SSAC for the waterbody has been adopted by FDEP and approved by the USEPA.
A3: To use: 1) Press "Clear Entries" button on right to remove all old data entries. 2) Enter Station ID in first cell (i.e., cell A7) (all data entered should be for the same station collected within the same 30-day period). 3) Enter measured TAN concentrations in mg/L collected at specified station during the same 30-day period. Enter water temperature (in °C) and pH (in standard units) measured at time of TAN sample collection. A minimum of 4 samples is required to calculate 30-day average TAN criteria for IWR purposes (Chapter 62-303, F.A.C.) 4) Once all required data are entered, the applicable TAN criteria (green and blue columns) and the averages of the measured TAN and the 30-day TAN SSAC values are calculated (red columns) automatically and achievement of the 30-day TAN SSAC is assessed.
A4: Columns C - E (Unshaded) are for data entry. Additional notes are embedded as comments in the heading for each column, please review!
A5: Columns A and B (except Cell A7) (shaded Gray) are filled in automatically. Columns F - I (shaded Green, Blue, and Red) are results fields and are protected from change. Do Not Attempt to Change These Fields!
A6: Station ID | B6: Monthly Observation Number | C6: Measured Total Ammonia Nitrogen (TAN), mg/L | D6: Measured Water Temperature, °C | E6: Measured pH, Standard pH units | F6: 30-Day Average TAN SSAC Applicable to Individual Sample, mg/L | G6: Single Sample Maximum TAN Criteria, mg/L | H6: Single Sample Maximum TAN Criteria Achieved | I6: Average of Measured TAN Concentrations, mg/L | J6: Average of Individual 30-Day TAN SSAC Values, mg/L | K6: 30-Day TAN SSAC Achieved | O6: Final pH | P6: Max Value Exceed
B7: 1 | C7: 0.5 | D7: 33 | E7: 7 | F7: =IF(AND(ISBLANK(D7),ISBLANK(E7)),"",IF(OR(ISBLANK(D7),ISBLANK(E7)),"Enter both Temp and pH",(0.9405*((0.0278/(1+10^(7.688-O7)))+(1.1994/(1+10^(O7-7.688))))*MIN(6.92,(7.547*10^(0.028*(20-D7))))))) -> 3.06992743 | G7: =IF(AND(ISBLANK(D7),ISBLANK(E7)),"",IF(OR(ISBLANK(D7),ISBLANK(E7)),"Enter both Temp and pH",2.5*((0.9405*((0.0278/(1+10^(7.688-O7)))+(1.1994/(1+10^(O7-7.688))))*MIN(6.92,(7.547*10^(0.028*(20-D7)))))))) -> 7.674818574 | H7: =IF(OR(ISBLANK(C7),ISBLANK(G7)),"",IF((ROUND(C7,2))>(ROUND(G7,2)),"NO","Yes")) -> Yes | I7: =AVERAGE($C$7:$C$66) -> 1.175 | J7: =AVERAGE($F$7:$F$66) -> 2.713980295 | K7: =IF(OR(I7>J7,MAX(P7:P501)>0),"No","Yes") -> Yes | O7: =IF(ISBLANK(E7),"",IF(E7<6.5,6.5,IF(E7>9,9,E7))) -> 7 | P7: =IF(H7="","",IF(H7="NO",1,0)) -> 0
A8: =IF(ISBLANK($A$7),"",$A$7) ->  | B8: 2 | C8: 1.1 | D8: 22 | E8: 7.5 | F8: =IF(AND(ISBLANK(D8),ISBLANK(E8)),"",IF(OR(ISBLANK(D8),ISBLANK(E8)),"Enter both Temp and pH",(0.9405*((0.0278/(1+10^(7.688-O8)))+(1.1994/(1+10^(O8-7.688))))*MIN(6.92,(7.547*10^(0.028*(20-D8))))))) -> 4.607374452 | G8: =IF(AND(ISBLANK(D8),ISBLANK(E8)),"",IF(OR(ISBLANK(D8),ISBLANK(E8)),"Enter both Temp and pH",2.5*((0.9405*((0.0278/(1+10^(7.688-O8)))+(1.1994/(1+10^(O8-7.688))))*MIN(6.92,(7.547*10^(0.028*(20-D8)))))))) -> 11.51843613 | H8: Yes | I8: =IF(COUNT(F7:F66)<4,"Minimum data requirements not met for IWR purposes!","") ->  | O8: 7.5 | P8: =IF(H8="","",IF(H8="NO",1,0)) -> 0
A9: =IF(ISBLANK($A$7),"",$A$7) ->  | B9: 3 | C9: 2.22 | D9: 25 | E9: 8.2 | F9: 1.560158533 | G9: 3.900396334 | H9: =IF(OR(ISBLANK(C9),ISBLANK(G9)),"",IF((ROUND(C9,2))>(ROUND(G9,2)),"NO","Yes")) -> Yes | O9: 8.2 | P9: 0
A10: =IF(ISBLANK($A$7),"",$A$7) ->  | B10: 4 | C10: 0.8 | D10: 35 | E10: 8.5 | F10: 0.4973411889 | G10: 1.243352972 | H10: =IF(OR(ISBLANK(C10),ISBLANK(G10)),"",IF((ROUND(C10,2))>(ROUND(G10,2)),"NO","Yes")) -> Yes | O10: 8.5 | P10: 0
A11: =IF(ISNUMBER(F11),A10,"") ->  | B11: =IF(ISNUMBER(C11),B10+1,"") -> 5 | C11: 1.65 | D11: 20 | E11: 7.25 | F11: 5.76807406 | G11: 14.42018515 | H11: Yes | O11: 7.25 | P11: 0
B12: =IF(ISNUMBER(C12),B11+1,"") -> 6 | C12: 0.78 | D12: 28 | E12: 8.5 | F12: 0.7810061041 | G12: 1.95251526 | H12: Yes | O12: 8.5 | P12: 0

Sheet Un-ionized Ammonia Calculator
A1: Un-ionized Ammonia Nitrogen Calculator | H1: Developed by Garry Payne, DEP, Sept. 2016
A2: To use: 1) Press "Clear Entries" button on right to remove all old data entries. 2) Enter measured TAN concentration in mg/L, Water Temperature in °C, and pH in standard units (these parameters are always required). 4) Then enter measured Salinity (ppt) or Specific Conductance (µmhos/cm) if available. (Note: Calculation preferentially uses salinity. If salinity data are not available, then leave salinity blank and enter specific conductance and it will be used. If neither salinity or conductance data are entered, then a salinity of zero is assumed).
A3: Columns A - F (Unshaded) are for data entry. Additional notes are embedded as comments in the heading for each column, please review!
A4: Column G (shaded Green) and Column H (shaded Blue) are results fields and are protected from change. Do Not Attempt to Change These Fields!
A5: Site ID | B5: Measured Total Ammonia Nitrogen (TAN), mg/L | C5: Measured Water Temperature, °C | D5: Measured pH, Standard pH units | E5: Measured Salinity, ppt (Optional) | F5: Specific Conductance, µmhos/cm (Optional) | G5: Calculated Un-ionized Ammonia, mg/L as N | H5: Calculated Un-ionized Ammonia, mg/L as NH3 | I5: Final Salinity | J5: Final pH
A6: 1 | B6: 0.75 | C6: 27.5 | D6: 7.25 | F6: 1275 | G6: =IF(AND(ISBLANK(B6),ISBLANK(C6), ISBLANK(D6)),"",IF(OR(ISBLANK(B6),ISBLANK(C6), ISBLANK(D6)),"Enter all required values",(B6*(1/((10^((0.0901821+(2729.92/(C6+273.15)))+((0.1552-(0.0003142*C6))*((19.9273*I6)/(1000-(1.005109*I6))))-D6))+1))))) -> 0.008867629981 | H6: =IF(AND(ISBLANK(B6),ISBLANK(C6), ISBLANK(D6)),"",IF(OR(ISBLANK(B6),ISBLANK(C6), ISBLANK(D6)),"Enter all required values",(B6*(1/((10^((0.0901821+(2729.92/(C6+273.15)))+((0.1552-(0.0003142*C6))*((19.9273*I6)/(1000-(1.005109*I6))))-D6))+1)))*(17/14))) -> 0.01076783641 | I6: =IF(AND(ISBLANK($E6),ISBLANK($F6)),0,IF(ISBLANK($E6),IF($F6=0,0,(0.008-(0.1692*((($F6*(1+0.0191*($C6-25))/10000)/4.2914)/((1+((760/760*1.01325)*(0.000207-(0.0000000637*(760/760*1.01325))+(0.000000000003989*(760/760*1.01325)^2))/(1+(0.03426*$C6)+(0.0004464*$C6^2)+(0.4215-0.003107*$C6)*((($F6*(1+0.0191*($C6-25))/10000)/4.2914)))))*(0.6766097+0.0200564*$C6+0.0001104259*$C6^2-0.00000069698*$C6^3+0.0000000010031*$C6^4)))^0.5)+(25.3851*((($F6*(1+0.0191*($C6-25))/10000)/4.2914)/((1+((760/760*1.01325)*(0.000207-(0.0000000637*(760/760*1.01325))+(0.000000000003989*(760/760*1.01325)^2))/(1+(0.03426*$C6)+(0.0004464*$C6^2)+(0.4215-0.003107*$C6)*((($F6*(1+0.0191*($C6-25))/10000)/4.2914)))))*(0.6766097+0.0200564*$C6+0.0001104259*$C6^2-0.00000069698*$C6^3+0.0000000010031*$C6^4))))+(14.0941*((($F6*(1+0.0191*($C6-25))/10000)/4.2914)/((1+((760/760*1.01325)*(0.000207-(0.0000000637*(760/760*1.01325))+(0.000000000003989*(760/760*1.01325)^2))/(1+(0.03426*$C6)+(0.0004464*$C6^2)+(0.4215-0.003107*$C6)*((($F6*(1+0.0191*($C6-25))/10000)/4.2914)))))*(0.6766097+0.0200564*$C6+0.0001104259*$C6^2-0.00000069698*$C6^3+0.0000000010031*$C6^4)))^1.5)-(7.0261*((($F6*(1+0.0191*($C6-25))/10000)/4.2914)/((1+((760/760*1.01325)*(0.000207-(0.0000000637*(760/760*1.01325))+(0.000000000003989*(760/760*1.01325)^2))/(1+(0.03426*$C6)+(0.0004464*$C6^2)+(0.4215-0.003107*$C6)*((($F6*(1+0.0191*($C6-25))/10000)/4.2914)))))*(0.6766097+0.0200564*$C6+0.0001104259*$C6^2-0.00000069698*$C6^3+0.0000000010031*$C6^4)))^2)+(2.7081*((($F6*(1+0.0191*($C6-25))/10000)/4.2914)/((1+((760/760*1.01325)*(0.000207-(0.0000000637*(760/760*1.01325))+(0.000000000003989*(760/760*1.01325)^2))/(1+(0.03426*$C6)+(0.0004464*$C6^2)+(0.4215-0.003107*$C6)*((($F6*(1+0.0191*($C6-25))/10000)/4.2914)))))*(0.6766097+0.0200564*$C6+0.0001104259*$C6^2-0.00000069698*$C6^3+0.0000000010031*$C6^4)))^2.5)+(($C6-15)/(1+0.0162*($C6-15))*(0.0005-0.0056*((($F6*(1+0.0191*($C6-25))/10000)/4.2914)/((1+((760/760*1.01325)*(0.000207-(0.0000000637*(760/760*1.01325))+(0.000000000003989*(760/760*1.01325)^2))/(1+(0.03426*$C6)+(0.0004464*$C6^2)+(0.4215-0.003107*$C6)*((($F6*(1+0.0191*($C6-25))/10000)/4.2914)))))*(0.6766097+0.0200564*$C6+0.0001104259*$C6^2-0.00000069698*$C6^3+0.0000000010031*$C6^4)))^0.5-0.0066*((($F6*(1+0.0191*($C6-25))/10000)/4.2914)/((1+((760/760*1.01325)*(0.000207-(0.0000000637*(760/760*1.01325))+(0.000000000003989*(760/760*1.01325)^2))/(1+(0.03426*$C6)+(0.0004464*$C6^2)+(0.4215-0.003107*$C6)*((($F6*(1+0.0191*($C6-25))/10000)/4.2914)))))*(0.6766097+0.0200564*$C6+0.0001104259*$C6^2-0.00000069698*$C6^3+0.0000000010031*$C6^4)))-0.0375*((($F6*(1+0.0191*($C6-25))/10000)/4.2914)/((1+((760/760*1.01325)*(0.000207-(0.0000000637*(760/760*1.01325))+(0.000000000003989*(760/760*1.01325)^2))/(1+(0.03426*$C6)+(0.0004464*$C6^2)+(0.4215-0.003107*$C6)*((($F6*(1+0.0191*($C6-25))/10000)/4.2914)))))*(0.6766097+0.0200564*$C6+0.0001104259*$C6^2-0.00000069698*$C6^3+0.0000000010031*$C6^4)))^1.5+0.0636*((($F6*(1+0.0191*($C6-25))/10000)/4.2914)/((1+((760/760*1.01325)*(0.000207-(0.0000000637*(760/760*1.01325))+(0.000000000003989*(760/760*1.01325)^2))/(1+(0.03426*$C6)+(0.0004464*$C6^2)+(0.4215-0.003107*$C6)*((($F6*(1+0.0191*($C6-25))/10000)/4.2914)))))*(0.6766097+0.0200564*$C6+0.0001104259*$C6^2-0.00000069698*$C6^3+0.0000000010031*$C6^4)))^2-0.0144*((($F6*(1+0.0191*($C6-25))/10000)/4.2914)/((1+((760/760*1.01325)*(0.000207-(0.0000000637*(760/760*1.01325))+(0.000000000003989*(760/760*1.01325)^2))/(1+(0.03426*$C6)+(0.0004464*$C6^2)+(0.4215-0.003107*$C6)*((($F6*(1+0.0191*($C6-25))/10000)/4.2914)))))*(0.6766097+0.0200564*$C6+0.0001104259*$C6^2-0.00000069698*$C6^3+0.0000000010031*$C6^4)))^2.5)))-(0.008/(1+(1.5*400*((($F6*(1+0.0191*($C6-25))/10000)/4.2914)/((1+((760/760*1.01325)*(0.000207-(0.0000000637*(760/760*1.01325))+(0.000000000003989*(760/760*1.01325)^2))/(1+(0.03426*$C6)+(0.0004464*$C6^2)+(0.4215-0.003107*$C6)*((($F6*(1+0.0191*($C6-25))/10000)/4.2914)))))*(0.6766097+0.0200564*$C6+0.0001104259*$C6^2-0.00000069698*$C6^3+0.0000000010031*$C6^4))))+(400*((($F6*(1+0.0191*($C6-25))/10000)/4.2914)/((1+((760/760*1.01325)*(0.000207-(0.0000000637*(760/760*1.01325))+(0.000000000003989*(760/760*1.01325)^2))/(1+(0.03426*$C6)+(0.0004464*$C6^2)+(0.4215-0.003107*$C6)*((($F6*(1+0.0191*($C6-25))/10000)/4.2914)))))*(0.6766097+0.0200564*$C6+0.0001104259*$C6^2-0.00000069698*$C6^3+0.0000000010031*$C6^4))))^2))-((0.0005*($C6-15)/(1+0.0162*($C6-15)))/(1+(100*((($F6*(1+0.0191*($C6-25))/10000)/4.2914)/((1+((760/760*1.01325)*(0.000207-(0.0000000637*(760/760*1.01325))+(0.000000000003989*(760/760*1.01325)^2))/(1+(0.03426*$C6)+(0.0004464*$C6^2)+(0.4215-0.003107*$C6)*((($F6*(1+0.0191*($C6-25))/10000)/4.2914)))))*(0.6766097+0.0200564*$C6+0.0001104259*$C6^2-0.00000069698*$C6^3+0.0000000010031*$C6^4))))^0.5+(100*((($F6*(1+0.0191*($C6-25))/10000)/4.2914)/((1+((760/760*1.01325)*(0.000207-(0.0000000637*(760/760*1.01325))+(0.000000000003989*(760/760*1.01325)^2))/(1+(0.03426*$C6)+(0.0004464*$C6^2)+(0.4215-0.003107*$C6)*((($F6*(1+0.0191*($C6-25))/10000)/4.2914)))))*(0.6766097+0.0200564*$C6+0.0001104259*$C6^2-0.00000069698*$C6^3+0.0000000010031*$C6^4))))^1.5))),$E6)) -> 0.6317597223 | J6: =IF(ISBLANK(D6),"",IF(D6<6.5,6.5,IF(D6>9,9,D6))) -> 7.25
A7: 2 | G7: =IF(AND(ISBLANK(B7),ISBLANK(C7), ISBLANK(D7)),"",IF(OR(ISBLANK(B7),ISBLANK(C7), ISBLANK(D7)),"Enter all required values",(B7*(1/((10^((0.0901821+(2729.92/(C7+273.15)))+((0.1552-(0.0003142*C7))*((19.9273*I7)/(1000-(1.005109*I7))))-D7))+1))))) ->  | H7: =IF(AND(ISBLANK(B7),ISBLANK(C7), ISBLANK(D7)),"",IF(OR(ISBLANK(B7),ISBLANK(C7), ISBLANK(D7)),"Enter all required values",(B7*(1/((10^((0.0901821+(2729.92/(C7+273.15)))+((0.1552-(0.0003142*C7))*((19.9273*I7)/(1000-(1.005109*I7))))-D7))+1)))*(17/14))) ->  | I7: =IF(AND(ISBLANK($E7),ISBLANK($F7)),0,IF(ISBLANK($E7),IF($F7=0,0,(0.008-(0.1692*((($F7*(1+0.0191*($C7-25))/10000)/4.2914)/((1+((760/760*1.01325)*(0.000207-(0.0000000637*(760/760*1.01325))+(0.000000000003989*(760/760*1.01325)^2))/(1+(0.03426*$C7)+(0.0004464*$C7^2)+(0.4215-0.003107*$C7)*((($F7*(1+0.0191*($C7-25))/10000)/4.2914)))))*(0.6766097+0.0200564*$C7+0.0001104259*$C7^2-0.00000069698*$C7^3+0.0000000010031*$C7^4)))^0.5)+(25.3851*((($F7*(1+0.0191*($C7-25))/10000)/4.2914)/((1+((760/760*1.01325)*(0.000207-(0.0000000637*(760/760*1.01325))+(0.000000000003989*(760/760*1.01325)^2))/(1+(0.03426*$C7)+(0.0004464*$C7^2)+(0.4215-0.003107*$C7)*((($F7*(1+0.0191*($C7-25))/10000)/4.2914)))))*(0.6766097+0.0200564*$C7+0.0001104259*$C7^2-0.00000069698*$C7^3+0.0000000010031*$C7^4))))+(14.0941*((($F7*(1+0.0191*($C7-25))/10000)/4.2914)/((1+((760/760*1.01325)*(0.000207-(0.0000000637*(760/760*1.01325))+(0.000000000003989*(760/760*1.01325)^2))/(1+(0.03426*$C7)+(0.0004464*$C7^2)+(0.4215-0.003107*$C7)*((($F7*(1+0.0191*($C7-25))/10000)/4.2914)))))*(0.6766097+0.0200564*$C7+0.0001104259*$C7^2-0.00000069698*$C7^3+0.0000000010031*$C7^4)))^1.5)-(7.0261*((($F7*(1+0.0191*($C7-25))/10000)/4.2914)/((1+((760/760*1.01325)*(0.000207-(0.0000000637*(760/760*1.01325))+(0.000000000003989*(760/760*1.01325)^2))/(1+(0.03426*$C7)+(0.0004464*$C7^2)+(0.4215-0.003107*$C7)*((($F7*(1+0.0191*($C7-25))/10000)/4.2914)))))*(0.6766097+0.0200564*$C7+0.0001104259*$C7^2-0.00000069698*$C7^3+0.0000000010031*$C7^4)))^2)+(2.7081*((($F7*(1+0.0191*($C7-25))/10000)/4.2914)/((1+((760/760*1.01325)*(0.000207-(0.0000000637*(760/760*1.01325))+(0.000000000003989*(760/760*1.01325)^2))/(1+(0.03426*$C7)+(0.0004464*$C7^2)+(0.4215-0.003107*$C7)*((($F7*(1+0.0191*($C7-25))/10000)/4.2914)))))*(0.6766097+0.0200564*$C7+0.0001104259*$C7^2-0.00000069698*$C7^3+0.0000000010031*$C7^4)))^2.5)+(($C7-15)/(1+0.0162*($C7-15))*(0.0005-0.0056*((($F7*(1+0.0191*($C7-25))/10000)/4.2914)/((1+((760/760*1.01325)*(0.000207-(0.0000000637*(760/760*1.01325))+(0.000000000003989*(760/760*1.01325)^2))/(1+(0.03426*$C7)+(0.0004464*$C7^2)+(0.4215-0.003107*$C7)*((($F7*(1+0.0191*($C7-25))/10000)/4.2914)))))*(0.6766097+0.0200564*$C7+0.0001104259*$C7^2-0.00000069698*$C7^3+0.0000000010031*$C7^4)))^0.5-0.0066*((($F7*(1+0.0191*($C7-25))/10000)/4.2914)/((1+((760/760*1.01325)*(0.000207-(0.0000000637*(760/760*1.01325))+(0.000000000003989*(760/760*1.01325)^2))/(1+(0.03426*$C7)+(0.0004464*$C7^2)+(0.4215-0.003107*$C7)*((($F7*(1+0.0191*($C7-25))/10000)/4.2914)))))*(0.6766097+0.0200564*$C7+0.0001104259*$C7^2-0.00000069698*$C7^3+0.0000000010031*$C7^4)))-0.0375*((($F7*(1+0.0191*($C7-25))/10000)/4.2914)/((1+((760/760*1.01325)*(0.000207-(0.0000000637*(760/760*1.01325))+(0.000000000003989*(760/760*1.01325)^2))/(1+(0.03426*$C7)+(0.0004464*$C7^2)+(0.4215-0.003107*$C7)*((($F7*(1+0.0191*($C7-25))/10000)/4.2914)))))*(0.6766097+0.0200564*$C7+0.0001104259*$C7^2-0.00000069698*$C7^3+0.0000000010031*$C7^4)))^1.5+0.0636*((($F7*(1+0.0191*($C7-25))/10000)/4.2914)/((1+((760/760*1.01325)*(0.000207-(0.0000000637*(760/760*1.01325))+(0.000000000003989*(760/760*1.01325)^2))/(1+(0.03426*$C7)+(0.0004464*$C7^2)+(0.4215-0.003107*$C7)*((($F7*(1+0.0191*($C7-25))/10000)/4.2914)))))*(0.6766097+0.0200564*$C7+0.0001104259*$C7^2-0.00000069698*$C7^3+0.0000000010031*$C7^4)))^2-0.0144*((($F7*(1+0.0191*($C7-25))/10000)/4.2914)/((1+((760/760*1.01325)*(0.000207-(0.0000000637*(760/760*1.01325))+(0.000000000003989*(760/760*1.01325)^2))/(1+(0.03426*$C7)+(0.0004464*$C7^2)+(0.4215-0.003107*$C7)*((($F7*(1+0.0191*($C7-25))/10000)/4.2914)))))*(0.6766097+0.0200564*$C7+0.0001104259*$C7^2-0.00000069698*$C7^3+0.0000000010031*$C7^4)))^2.5)))-(0.008/(1+(1.5*400*((($F7*(1+0.0191*($C7-25))/10000)/4.2914)/((1+((760/760*1.01325)*(0.000207-(0.0000000637*(760/760*1.01325))+(0.000000000003989*(760/760*1.01325)^2))/(1+(0.03426*$C7)+(0.0004464*$C7^2)+(0.4215-0.003107*$C7)*((($F7*(1+0.0191*($C7-25))/10000)/4.2914)))))*(0.6766097+0.0200564*$C7+0.0001104259*$C7^2-0.00000069698*$C7^3+0.0000000010031*$C7^4))))+(400*((($F7*(1+0.0191*($C7-25))/10000)/4.2914)/((1+((760/760*1.01325)*(0.000207-(0.0000000637*(760/760*1.01325))+(0.000000000003989*(760/760*1.01325)^2))/(1+(0.03426*$C7)+(0.0004464*$C7^2)+(0.4215-0.003107*$C7)*((($F7*(1+0.0191*($C7-25))/10000)/4.2914)))))*(0.6766097+0.0200564*$C7+0.0001104259*$C7^2-0.00000069698*$C7^3+0.0000000010031*$C7^4))))^2))-((0.0005*($C7-15)/(1+0.0162*($C7-15)))/(1+(100*((($F7*(1+0.0191*($C7-25))/10000)/4.2914)/((1+((760/760*1.01325)*(0.000207-(0.0000000637*(760/760*1.01325))+(0.000000000003989*(760/760*1.01325)^2))/(1+(0.03426*$C7)+(0.0004464*$C7^2)+(0.4215-0.003107*$C7)*((($F7*(1+0.0191*($C7-25))/10000)/4.2914)))))*(0.6766097+0.0200564*$C7+0.0001104259*$C7^2-0.00000069698*$C7^3+0.0000000010031*$C7^4))))^0.5+(100*((($F7*(1+0.0191*($C7-25))/10000)/4.2914)/((1+((760/760*1.01325)*(0.000207-(0.0000000637*(760/760*1.01325))+(0.000000000003989*(760/760*1.01325)^2))/(1+(0.03426*$C7)+(0.0004464*$C7^2)+(0.4215-0.003107*$C7)*((($F7*(1+0.0191*($C7-25))/10000)/4.2914)))))*(0.6766097+0.0200564*$C7+0.0001104259*$C7^2-0.00000069698*$C7^3+0.0000000010031*$C7^4))))^1.5))),$E7)) -> 0 | J7: =IF(ISBLANK(D7),"",IF(D7<6.5,6.5,IF(D7>9,9,D7))) -> 
A8: 3 | I8: 0
A9: 4 | I9: 0
A10: 5 | I10: 0
A11: 6 | I11: 0
A12: 7 | I12: 0
A13: 8 | I13: 0
A14: 9 | I14: 0
A15: 10 | I15: 0
A16: 11 | I16: 0
A17: 12 | I17: 0
A18: 13 | I18: 0
A19: 14 | I19: 0
A20: 15 | I20: 0
A21: 16 | I21: 0
A22: 17 | I22: 0
A23: 18 | I23: 0
A24: 19 | I24: 0
A25: 20 | I25: 0
A26: 21 | I26: 0
A27: 22 | I27: 0
A28: 23 | I28: 0
A29: 24 | I29: 0
A30: 25 | I30: 0
A31: 26 | I31: 0
A32: 27 | I32: 0
A33: 28 | I33: 0
A34: 29 | I34: 0
A35: 30 | I35: 0
A36: 31 | I36: 0
A37: 32 | I37: 0
A38: 33 | I38: 0
A39: 34 | I39: 0
A40: 35 | I40: 0
A41: 36 | I41: 0
A42: 37 | I42: 0
A43: 38 | I43: 0
A44: 39 | I44: 0
A45: 40 | I45: 0
A46: 41 | I46: 0
A47: 42 | I47: 0
A48: 43 | I48: 0
A49: 44 | I49: 0
A50: 45 | I50: 0
A51: 46 | I51: 0
A52: 47 | I52: 0
A53: 48 | I53: 0
A54: 49 | I54: 0
A55: 50 | I55: 0
A56: 51 | I56: 0
A57: 52 | I57: 0
A58: 53 | I58: 0
A59: 54 | I59: 0
A60: 55 | I60: 0
A61: 56 | I61: 0
A62: 57 | I62: 0
A63: 58 | I63: 0
A64: 59 | I64: 0
A65: 60 | I65: 0
A66: 61 | I66: 0
A67: 62 | I67: 0
A68: 63 | I68: 0
A69: 64 | I69: 0
A70: 65 | I70: 0
A71: 66 | G71: =IF(AND(ISBLANK(B71),ISBLANK(C71), ISBLANK(D71)),"",IF(OR(ISBLANK(B71),ISBLANK(C71), ISBLANK(D71)),"Enter all required values",(B71*(1/((10^((0.0901821+(2729.92/(C71+273.15)))+((0.1552-(0.0003142*C71))*((19.9273*I71)/(1000-(1.005109*I71))))-D71))+1))))) ->  | H71: =IF(AND(ISBLANK(B71),ISBLANK(C71), ISBLANK(D71)),"",IF(OR(ISBLANK(B71),ISBLANK(C71), ISBLANK(D71)),"Enter all required values",(B71*(1/((10^((0.0901821+(2729.92/(C71+273.15)))+((0.1552-(0.0003142*C71))*((19.9273*I71)/(1000-(1.005109*I71))))-D71))+1)))*(17/14))) ->  | I71: =IF(AND(ISBLANK($E71),ISBLANK($F71)),0,IF(ISBLANK($E71),IF($F71=0,0,(0.008-(0.1692*((($F71*(1+0.0191*($C71-25))/10000)/4.2914)/((1+((760/760*1.01325)*(0.000207-(0.0000000637*(760/760*1.01325))+(0.000000000003989*(760/760*1.01325)^2))/(1+(0.03426*$C71)+(0.0004464*$C71^2)+(0.4215-0.003107*$C71)*((($F71*(1+0.0191*($C71-25))/10000)/4.2914)))))*(0.6766097+0.0200564*$C71+0.0001104259*$C71^2-0.00000069698*$C71^3+0.0000000010031*$C71^4)))^0.5)+(25.3851*((($F71*(1+0.0191*($C71-25))/10000)/4.2914)/((1+((760/760*1.01325)*(0.000207-(0.0000000637*(760/760*1.01325))+(0.000000000003989*(760/760*1.01325)^2))/(1+(0.03426*$C71)+(0.0004464*$C71^2)+(0.4215-0.003107*$C71)*((($F71*(1+0.0191*($C71-25))/10000)/4.2914)))))*(0.6766097+0.0200564*$C71+0.0001104259*$C71^2-0.00000069698*$C71^3+0.0000000010031*$C71^4))))+(14.0941*((($F71*(1+0.0191*($C71-25))/10000)/4.2914)/((1+((760/760*1.01325)*(0.000207-(0.0000000637*(760/760*1.01325))+(0.000000000003989*(760/760*1.01325)^2))/(1+(0.03426*$C71)+(0.0004464*$C71^2)+(0.4215-0.003107*$C71)*((($F71*(1+0.0191*($C71-25))/10000)/4.2914)))))*(0.6766097+0.0200564*$C71+0.0001104259*$C71^2-0.00000069698*$C71^3+0.0000000010031*$C71^4)))^1.5)-(7.0261*((($F71*(1+0.0191*($C71-25))/10000)/4.2914)/((1+((760/760*1.01325)*(0.000207-(0.0000000637*(760/760*1.01325))+(0.000000000003989*(760/760*1.01325)^2))/(1+(0.03426*$C71)+(0.0004464*$C71^2)+(0.4215-0.003107*$C71)*((($F71*(1+0.0191*($C71-25))/10000)/4.2914)))))*(0.6766097+0.0200564*$C71+0.0001104259*$C71^2-0.00000069698*$C71^3+0.0000000010031*$C71^4)))^2)+(2.7081*((($F71*(1+0.0191*($C71-25))/10000)/4.2914)/((1+((760/760*1.01325)*(0.000207-(0.0000000637*(760/760*1.01325))+(0.000000000003989*(760/760*1.01325)^2))/(1+(0.03426*$C71)+(0.0004464*$C71^2)+(0.4215-0.003107*$C71)*((($F71*(1+0.0191*($C71-25))/10000)/4.2914)))))*(0.6766097+0.0200564*$C71+0.0001104259*$C71^2-0.00000069698*$C71^3+0.0000000010031*$C71^4)))^2.5)+(($C71-15)/(1+0.0162*($C71-15))*(0.0005-0.0056*((($F71*(1+0.0191*($C71-25))/10000)/4.2914)/((1+((760/760*1.01325)*(0.000207-(0.0000000637*(760/760*1.01325))+(0.000000000003989*(760/760*1.01325)^2))/(1+(0.03426*$C71)+(0.0004464*$C71^2)+(0.4215-0.003107*$C71)*((($F71*(1+0.0191*($C71-25))/10000)/4.2914)))))*(0.6766097+0.0200564*$C71+0.0001104259*$C71^2-0.00000069698*$C71^3+0.0000000010031*$C71^4)))^0.5-0.0066*((($F71*(1+0.0191*($C71-25))/10000)/4.2914)/((1+((760/760*1.01325)*(0.000207-(0.0000000637*(760/760*1.01325))+(0.000000000003989*(760/760*1.01325)^2))/(1+(0.03426*$C71)+(0.0004464*$C71^2)+(0.4215-0.003107*$C71)*((($F71*(1+0.0191*($C71-25))/10000)/4.2914)))))*(0.6766097+0.0200564*$C71+0.0001104259*$C71^2-0.00000069698*$C71^3+0.0000000010031*$C71^4)))-0.0375*((($F71*(1+0.0191*($C71-25))/10000)/4.2914)/((1+((760/760*1.01325)*(0.000207-(0.0000000637*(760/760*1.01325))+(0.000000000003989*(760/760*1.01325)^2))/(1+(0.03426*$C71)+(0.0004464*$C71^2)+(0.4215-0.003107*$C71)*((($F71*(1+0.0191*($C71-25))/10000)/4.2914)))))*(0.6766097+0.0200564*$C71+0.0001104259*$C71^2-0.00000069698*$C71^3+0.0000000010031*$C71^4)))^1.5+0.0636*((($F71*(1+0.0191*($C71-25))/10000)/4.2914)/((1+((760/760*1.01325)*(0.000207-(0.0000000637*(760/760*1.01325))+(0.000000000003989*(760/760*1.01325)^2))/(1+(0.03426*$C71)+(0.0004464*$C71^2)+(0.4215-0.003107*$C71)*((($F71*(1+0.0191*($C71-25))/10000)/4.2914)))))*(0.6766097+0.0200564*$C71+0.0001104259*$C71^2-0.00000069698*$C71^3+0.0000000010031*$C71^4)))^2-0.0144*((($F71*(1+0.0191*($C71-25))/10000)/4.2914)/((1+((760/760*1.01325)*(0.000207-(0.0000000637*(760/760*1.01325))+(0.000000000003989*(760/760*1.01325)^2))/(1+(0.03426*$C71)+(0.0004464*$C71^2)+(0.4215-0.003107*$C71)*((($F71*(1+0.0191*($C71-25))/10000)/4.2914)))))*(0.6766097+0.0200564*$C71+0.0001104259*$C71^2-0.00000069698*$C71^3+0.0000000010031*$C71^4)))^2.5)))-(0.008/(1+(1.5*400*((($F71*(1+0.0191*($C71-25))/10000)/4.2914)/((1+((760/760*1.01325)*(0.000207-(0.0000000637*(760/760*1.01325))+(0.000000000003989*(760/760*1.01325)^2))/(1+(0.03426*$C71)+(0.0004464*$C71^2)+(0.4215-0.003107*$C71)*((($F71*(1+0.0191*($C71-25))/10000)/4.2914)))))*(0.6766097+0.0200564*$C71+0.0001104259*$C71^2-0.00000069698*$C71^3+0.0000000010031*$C71^4))))+(400*((($F71*(1+0.0191*($C71-25))/10000)/4.2914)/((1+((760/760*1.01325)*(0.000207-(0.0000000637*(760/760*1.01325))+(0.000000000003989*(760/760*1.01325)^2))/(1+(0.03426*$C71)+(0.0004464*$C71^2)+(0.4215-0.003107*$C71)*((($F71*(1+0.0191*($C71-25))/10000)/4.2914)))))*(0.6766097+0.0200564*$C71+0.0001104259*$C71^2-0.00000069698*$C71^3+0.0000000010031*$C71^4))))^2))-((0.0005*($C71-15)/(1+0.0162*($C71-15)))/(1+(100*((($F71*(1+0.0191*($C71-25))/10000)/4.2914)/((1+((760/760*1.01325)*(0.000207-(0.0000000637*(760/760*1.01325))+(0.000000000003989*(760/760*1.01325)^2))/(1+(0.03426*$C71)+(0.0004464*$C71^2)+(0.4215-0.003107*$C71)*((($F71*(1+0.0191*($C71-25))/10000)/4.2914)))))*(0.6766097+0.0200564*$C71+0.0001104259*$C71^2-0.00000069698*$C71^3+0.0000000010031*$C71^4))))^0.5+(100*((($F71*(1+0.0191*($C71-25))/10000)/4.2914)/((1+((760/760*1.01325)*(0.000207-(0.0000000637*(760/760*1.01325))+(0.000000000003989*(760/760*1.01325)^2))/(1+(0.03426*$C71)+(0.0004464*$C71^2)+(0.4215-0.003107*$C71)*((($F71*(1+0.0191*($C71-25))/10000)/4.2914)))))*(0.6766097+0.0200564*$C71+0.0001104259*$C71^2-0.00000069698*$C71^3+0.0000000010031*$C71^4))))^1.5))),$E71)) -> 0 | J71: =IF(ISBLANK(D71),"",IF(D71<6.5,6.5,IF(D71>9,9,D71))) -> 
A72: 67 | I72: 0
A73: 68 | I73: 0
A74: 69 | I74: 0
A75: 70 | I75: 0
A76: 71 | I76: 0
A77: 72 | I77: 0
A78: 73 | I78: 0
A79: 74 | I79: 0
A80: 75 | I80: 0
A81: 76 | I81: 0
A82: 77 | I82: 0
A83: 78 | I83: 0
A84: 79 | I84: 0
A85: 80 | I85: 0
A86: 81 | I86: 0
A87: 82 | I87: 0
A88: 83 | I88: 0
A89: 84 | I89: 0
A90: 85 | I90: 0
A91: 86 | I91: 0
A92: 87 | I92: 0
A93: 88 | I93: 0
A94: 89 | I94: 0
A95: 90 | I95: 0
A96: 91 | I96: 0
A97: 92 | I97: 0
A98: 93 | I98: 0
A99: 94 | I99: 0
A100: 95 | I100: 0
A101: 96 | I101: 0
A102: 97 | I102: 0
A103: 98 | I103: 0
A104: 99 | I104: 0
A105: 100 | I105: 0
